{"text_format":"2","workbook":"xlsx","n_sheets":4,"sheets":["FORMATO ANULACIÓN","INSTRUCTIVO ANULACIÓN","DANE","LISTADOS"],"not_rendered":{"charts":0,"images":1,"macros":0,"external_links":0,"defined_names":38,"comments":1,"pivot_tables":0},"unopened":[],"bounds":{"document_bytes":16777216,"sheet_cells":100000,"run_cost":"one","rows_first":2000,"rows_last":500,"rows_between":2000,"halvings":0,"cell_chars":16384,"cell_head_chars":4096},"cells_cut":0,"cells_raw":0,"read":"whole","date_system":"1900"}

{"sheet":"FORMATO ANULACIÓN","index":0,"n_rows":61,"n_cols":9,"rows_kept":61,"cut":false,"hidden":false,"merged":[[63,0,63,8],[53,3,53,7],[54,3,54,7],[55,3,55,7],[56,3,56,7],[59,1,59,8],[60,1,60,8],[9,0,9,8],[17,1,18,2],[1,7,7,8],[5,0,6,6],[1,0,4,6],[17,0,19,0],[17,3,19,3],[17,4,19,4],[17,5,19,5],[17,6,19,6],[17,7,19,7],[50,3,50,5],[14,0,15,8],[17,8,19,8],[11,0,11,6],[12,0,12,6]]}
[]
["PATRIMONIO AUTÓNOMO FIA",{"$nulls":6},"RADICACIÓN"]
[]
[]
[]
["FORMATO SOLICITUD DE ANULACIÓN \nDE CERTIFICADOS DE DISPONIBILIDAD DE RECURSOS - CDR"]
[]
[]
[]
["1. INFORMACION BÁSICA"]
[]
["PDA DEL DEPARTAMENTO DE:",{"$nulls":6},"FECHA - (DD/MM/AAAA):"]
["--------------",{"$nulls":6},"No SOLICITUD"]
[]
["CDR´s POR ANULAR"]
[]
[]
["No","ORIGEN DE LOS RECURSOS",null,"No. CDR","FECHA EXPEDICIÓN CDR\n(DD/MM/AAAA)","FUENTE DE RECURSOS","VALOR CDR","PRORROGADO\nSI / NO","OBSERVACIONES"]
[]
[null,"DANE","(Departamento/ Municipio)"]
[1,{"$f":"IFERROR(VLOOKUP(C21,DANE!$A$2:$C$825,3,),\"\")","v":""}]
[2,{"$f":"IFERROR(VLOOKUP(C22,DANE!$A$2:$C$825,3,),\"\")","v":""}]
[3,{"$f":"IFERROR(VLOOKUP(C23,DANE!$A$2:$C$825,3,),\"\")","v":""}]
[4,{"$f":"IFERROR(VLOOKUP(C24,DANE!$A$2:$C$825,3,),\"\")","v":""}]
[5,{"$f":"IFERROR(VLOOKUP(C25,DANE!$A$2:$C$825,3,),\"\")","v":""}]
[6,{"$f":"IFERROR(VLOOKUP(C26,DANE!$A$2:$C$825,3,),\"\")","v":""}]
[7,{"$f":"IFERROR(VLOOKUP(C27,DANE!$A$2:$C$825,3,),\"\")","v":""}]
[8,{"$f":"IFERROR(VLOOKUP(C28,DANE!$A$2:$C$825,3,),\"\")","v":""}]
[9,{"$f":"IFERROR(VLOOKUP(C29,DANE!$A$2:$C$825,3,),\"\")","v":""}]
[10,{"$f":"IFERROR(VLOOKUP(C30,DANE!$A$2:$C$825,3,),\"\")","v":""}]
[11,{"$f":"IFERROR(VLOOKUP(C31,DANE!$A$2:$C$825,3,),\"\")","v":""}]
[12,{"$f":"IFERROR(VLOOKUP(C32,DANE!$A$2:$C$825,3,),\"\")","v":""}]
[13,{"$f":"IFERROR(VLOOKUP(C33,DANE!$A$2:$C$825,3,),\"\")","v":""}]
[14,{"$f":"IFERROR(VLOOKUP(C34,DANE!$A$2:$C$825,3,),\"\")","v":""}]
[15,{"$f":"IFERROR(VLOOKUP(C35,DANE!$A$2:$C$825,3,),\"\")","v":""}]
[16,{"$f":"IFERROR(VLOOKUP(C36,DANE!$A$2:$C$825,3,),\"\")","v":""}]
[17,{"$f":"IFERROR(VLOOKUP(C37,DANE!$A$2:$C$825,3,),\"\")","v":""}]
[18,{"$f":"IFERROR(VLOOKUP(C38,DANE!$A$2:$C$825,3,),\"\")","v":""}]
[19,{"$f":"IFERROR(VLOOKUP(C39,DANE!$A$2:$C$825,3,),\"\")","v":""}]
[20,{"$f":"IFERROR(VLOOKUP(C40,DANE!$A$2:$C$825,3,),\"\")","v":""}]
[21,{"$f":"IFERROR(VLOOKUP(C41,DANE!$A$2:$C$825,3,),\"\")","v":""}]
[22,{"$f":"IFERROR(VLOOKUP(C42,DANE!$A$2:$C$825,3,),\"\")","v":""}]
[23,{"$f":"IFERROR(VLOOKUP(C43,DANE!$A$2:$C$825,3,),\"\")","v":""}]
[24,{"$f":"IFERROR(VLOOKUP(C44,DANE!$A$2:$C$825,3,),\"\")","v":""}]
[25,{"$f":"IFERROR(VLOOKUP(C45,DANE!$A$2:$C$825,3,),\"\")","v":""}]
[26,{"$f":"IFERROR(VLOOKUP(C46,DANE!$A$2:$C$825,3,),\"\")","v":""}]
[27,{"$f":"IFERROR(VLOOKUP(C47,DANE!$A$2:$C$825,3,),\"\")","v":""}]
[28,{"$f":"IFERROR(VLOOKUP(C48,DANE!$A$2:$C$825,3,),\"\")","v":""}]
[29,{"$f":"IFERROR(VLOOKUP(C49,DANE!$A$2:$C$825,3,),\"\")","v":""}]
[30,{"$f":"IFERROR(VLOOKUP(C50,DANE!$A$2:$C$825,3,),\"\")","v":""}]
[null,null,null,"VALOR TOTAL DE ANULACIONES EN ESTA SOLICITUD",null,null,{"$f":"SUM(G21:G50)","v":0}]
[]
[]
[null,null,"FIRMA"]
[null,null,"NOMBRE"]
[null,null,null,"Representante Legal del Fideicomitente o Gestor"]
[null,null,null,{"$f":"CONCATENATE(\"PDA DEPARTAMENTO DE \",A13)","v":"PDA DEPARTAMENTO DE --------------"}]
[]
[null,"NOTAS"]
[null,"*Para todas las anulaciones de CDR'S, es requisito no tener contratos asociados al mismo. Ver MOE "]
[null,"*Adjuntar CDR y su respectiva Prórroga si la hubiere, en caso de extravío anexar denuncia de perdida de documento ante la entidad competente. Ver MOE"]

{"sheet":"INSTRUCTIVO ANULACIÓN","index":1,"n_rows":24,"n_cols":3,"rows_kept":24,"cut":false,"hidden":false,"merged":[]}
[]
[]
[null,null,"INSTRUCTIVO DILIGENCIAMIENTO FORMATO ANULACIÓN DE CDR´s"]
[]
[]
[]
["1. INFORMACIÓN BÁSICA"]
[null,"PAP - PDA DEL DEPARTAMENTO DE: ","Seleccione en la lista desplegable, el nombre del PDA que solicita la Anulación del compromiso presupuestal"]
[null,"FECHA (DD/MM/AAAA): ","Fecha de diligenciamiento del formato"]
[null,"No. SOLICITUD:","Consecutivo del PDA "]
[]
["2. CDR´s POR ANULAR"]
[null,"ORIGEN DE LOS RECURSOS\n(CÓDIGO DANE)","Se asigna automáticamente, después de seleccionar en la columna \"Departamento/Municipio\""]
[null,"ORIGEN DE LOS RECURSOS\n(DEPARTAMENTO/MUNICIPIO)","Seleccione en la lista desplegable, el nombre del ente territorial cuyo origen de recursos es el CDR objeto de Anulación. \nLos nombres que se desplieguen en esta casilla, dependen del Departamento seleccionado en la \"INFORMACIÓN BÁSICA\""]
[null,"No. CDR","Relacione el número del CDR por Anular"]
[null,"FECHA EXPEDICIÓN CDR\n(DD/MM/AAAA)","Relacione la Fecha de Expedición del CDR por Anular"]
[null,"FUENTE DE RECURSOS","Seleccione en la lista desplegable, la fuente de recursos del CDR por Anular: \n* SGP - Sistema General de Participaciones\n* Regalías Directas\n* Regalías SGR - Fondo Compensación Regional\n* Nación (Audiencias Públicas)\n* Nación (Proyectos Estratégicos)  \n* Recursos CAR\n* Otros Recursos\n* Banco Mundial\n* Contrato Plan SGP\n* Contrato Plan Nación\n* Contrato Plan Regalías\n* Crédito BID\n* Recursos Crédito\n* Nación Compromiso por Colombia"]
[null,"VALOR CDR","Relacione el valor del CDR por Anular"]
[null,"PRORROGADO\nSI / NO","Seleccione si el CDR fue Prorrogado."]
[null,"OBSERVACIONES","Indique si el documento original fue extraviado y adjunte la denuncia respectiva como soporte de la Solicitud de Anulación o relacione aclaraciones que crea convenientes para el Proceso de Anulación de CDR´s."]
[]
["3. FIRMA"]
[null,"FIRMA","Se registra la firma del Representante Legal del Fideicomitente o Gestor"]
[null,"NOMBRE","Se registra el nombre del Representante Legal del Fideicomitente o Gestor"]

{"sheet":"DANE","index":2,"n_rows":804,"n_cols":18,"rows_kept":804,"cut":false,"hidden":true,"merged":[[0,5,0,6]]}
["MUNICIPIO","DPTO/MPIO","DANE","DEPARTAMENTO",null,"TIPO DE GASTO",{"$nulls":11},"NEIVA"]
["AMAZONAS_","Departamento",91999,"AMAZONAS",null,"COMPONENTE","SUBCOMPONENTE"]
["EL ENCANTO","ANM",91263,"AMAZONAS","","Infraestructura en Agua y Saneamiento","Pre-Inversión"]
["LA CHORRERA","ANM",91405,"AMAZONAS","","Desarrollo Institucional","Inversión"]
["LA PEDRERA","ANM",91407,"AMAZONAS","","Proyectos Ambientales","Interventoría"]
["LA VICTORIA","ANM",91430,"AMAZONAS","","Desarrollo sector rural","Estructura Operativa"]
["MIRITI - PARANÁ","ANM",91460,"AMAZONAS","","Comunidades Indigenas/afrocolombianas","Otros"]
["PUERTO ALEGRÍA","ANM",91530,"AMAZONAS","","Gestión del Riesgo Sectorial"]
["PUERTO ARICA","ANM",91536,"AMAZONAS",""]
["PUERTO NARIÑO","Municipio",91540,"AMAZONAS","","FUENTE DE RECURSOS","PRORROGA"]
["PUERTO_SANTANDER","ANM",91669,"AMAZONAS","","SGP Agua potable y Saneamiento basico","SI"]
["TARAPACÁ","ANM",91798,"AMAZONAS","","Regalías Directas","NO"]
["ANTIOQUIA_","Departamento",5999,"ANTIOQUIA","","Regalías SGR - Fondo Compensación Regional"]
["ABEJORRAL","Municipio",5002,"ANTIOQUIA","","Regalías SGR - Fondo Desarrollo Regional"]
["ALEJANDRÍA","Municipio",5021,"ANTIOQUIA","","Nación (Audiencias Públicas)"]
["AMAGA","Municipio",5030,"ANTIOQUIA","","Nación (Proyectos Estratégicos)"]
["AMALFI","Municipio",5031,"ANTIOQUIA","","Recursos CAR"]
["ANDES","Municipio",5034,"ANTIOQUIA","","Otros Recursos"]
["ANGELOPOLIS","Municipio",5036,"ANTIOQUIA","","Banco Mundial"]
["ANORÍ","Municipio",5040,"ANTIOQUIA","","Contrato Plan SGP"]
["SANTAFE DE ANTIOQUIA","Municipio",5042,"ANTIOQUIA","","Contrato Plan Nación"]
["ANZA","Municipio",5044,"ANTIOQUIA","","Contrato Plan Regalías"]
["ARBOLETES","Municipio",5051,"ANTIOQUIA","","Crédito BID"]
["ARGELIA","Municipio",5055,"ANTIOQUIA","","Recursos Crédito"]
["ARMENIA","Municipio",5059,"ANTIOQUIA","","Nación Compromiso por Colombia"]
["BETULIA","Municipio",5093,"ANTIOQUIA",""]
["CIUDAD BOLIVAR","Municipio",5101,"ANTIOQUIA",""]
["BRICEÑO","Municipio",5107,"ANTIOQUIA",""]
["BURITICA","Municipio",5113,"ANTIOQUIA",""]
["CACERES","Municipio",5120,"ANTIOQUIA",""]
["CAICEDO","Municipio",5125,"ANTIOQUIA",""]
["CAMPAMENTO","Municipio",5134,"ANTIOQUIA"]
["CAÑASGORDAS","Municipio",5138,"ANTIOQUIA",""]
["CARACOLI","Municipio",5142,"ANTIOQUIA",""]
["CAREPA","Municipio",5147,"ANTIOQUIA",""]
["CAROLINA","Municipio",5150,"ANTIOQUIA",""]
["CAUCASIA","Municipio",5154,"ANTIOQUIA",""]
["CISNEROS","Municipio",5190,"ANTIOQUIA",""]
["COCORNÁ","Municipio",5197,"ANTIOQUIA",""]
["CONCORDIA","Municipio",5209,"ANTIOQUIA",""]
["DON MATIAS","Municipio",5237,"ANTIOQUIA"]
["EL BAGRE","Municipio",5250,"ANTIOQUIA",""]
["ENTRERRIOS","Municipio",5264,"ANTIOQUIA",""]
["FREDONIA","Municipio",5282,"ANTIOQUIA"]
["FRONTINO","Municipio",5284,"ANTIOQUIA",""]
["GIRALDO","Municipio",5306,"ANTIOQUIA",""]
["GOMEZ PLATA","Municipio",5310,"ANTIOQUIA",""]
["GUATAPÉ","Municipio",5321,"ANTIOQUIA",""]
["GUARNE","Municipio",5318,"ANTIOQUIA"]
["VALPARAISO","Municipio",5856,"ANTIOQUIA"]
["CONCEPCION","Municipio",5206,"ANTIOQUIA"]
["HELICONIA","Municipio",5347,"ANTIOQUIA",""]
["HISPANIA","Municipio",5353,"ANTIOQUIA",""]
["ITUANGO","Municipio",5361,"ANTIOQUIA",""]
["JARDIN","Municipio",5364,"ANTIOQUIA"]
["JERICO","Municipio",5368,"ANTIOQUIA",""]
["LA CEJA","Municipio",5376,"ANTIOQUIA",""]
["LA PINTADA","Municipio",5390,"ANTIOQUIA",""]
["LA UNIÓN","Municipio",5400,"ANTIOQUIA",""]
["LIBORINA","Municipio",5411,"ANTIOQUIA",""]
["MACEO","Municipio",5425,"ANTIOQUIA",""]
["MONTEBELLO","Municipio",5467,"ANTIOQUIA",""]
["MURINDO","Municipio",5475,"ANTIOQUIA",""]
["MUTATÁ","Municipio",5480,"ANTIOQUIA"]
["NARIÑO","Municipio",5483,"ANTIOQUIA",""]
["NECOCLI","Municipio",5490,"ANTIOQUIA",""]
["NECHI","Municipio",5495,"ANTIOQUIA",""]
["OLAYA","Municipio",5501,"ANTIOQUIA",""]
["EL PEÑOL","Municipio",5541,"ANTIOQUIA",""]
["PUEBLORRICO","Municipio",5576,"ANTIOQUIA",""]
["PUERTO BERRIO","Municipio",5579,"ANTIOQUIA",""]
["PUERTO NARE","Municipio",5585,"ANTIOQUIA",""]
["PUERTO TRIUNFO","Municipio",5591,"ANTIOQUIA"]
["REMEDIOS","Municipio",5604,"ANTIOQUIA",""]
["SABANALARGA","Municipio",5628,"ANTIOQUIA",""]
["SALGAR","Municipio",5642,"ANTIOQUIA",""]
["SAN ANDRÉS","Municipio",5647,"ANTIOQUIA",""]
["SAN CARLOS","Municipio",5649,"ANTIOQUIA",""]
["SAN FRANCISCO","Municipio",5652,"ANTIOQUIA",""]
["SAN JERONIMO","Municipio",5656,"ANTIOQUIA",""]
["SAN JOSE DE LA MONTAÑA","Municipio",5658,"ANTIOQUIA"]
["SAN JUAN DE URABA","Municipio",5659,"ANTIOQUIA",""]
["SAN LUIS","Municipio",5660,"ANTIOQUIA",""]
["SAN RAFAEL","Municipio",5667,"ANTIOQUIA",""]
["SAN ROQUE","Municipio",5670,"ANTIOQUIA",""]
["SAN VICENTE DE FERRER","Municipio",5674,"ANTIOQUIA",""]
["SANTA BARBARA","Municipio",5679,"ANTIOQUIA",""]
["SANTA ROSA DE OSOS","Municipio",5686,"ANTIOQUIA",""]
["SANTO DOMINGO","Municipio",5690,"ANTIOQUIA"]
["SANTUARIO","Municipio",5697,"ANTIOQUIA"]
["SEGOVIA","Municipio",5736,"ANTIOQUIA",""]
["SONSON","Municipio",5756,"ANTIOQUIA",""]
["TARSO","Municipio",5792,"ANTIOQUIA",""]
["TITIRIBI","Municipio",5809,"ANTIOQUIA",""]
["TOLEDO","Municipio",5819,"ANTIOQUIA",""]
["URAMITA","Municipio",5842,"ANTIOQUIA",""]
["URRAO","Municipio",5847,"ANTIOQUIA",""]
["VALDIVIA","Municipio",5854,"ANTIOQUIA",""]
["VEGACHI","Municipio",5858,"ANTIOQUIA",""]
["VENECIA","Municipio",5861,"ANTIOQUIA",""]
["VIGIA DEL FUERTE","Municipio",5873,"ANTIOQUIA",""]
["YOLOMBO","Municipio",5890,"ANTIOQUIA",""]
["ZARAGOZA","Municipio",5895,"ANTIOQUIA"]
["ARAUCA_","Departamento",81999,"ARAUCA",""]
["ATLÁNTICO_","Departamento",8999,"ATLÁNTICO",""]
["PUERTO COLOMBIA","Municipio",8573,"ATLÁNTICO",""]
["BOLÍVAR_","Departamento",13999,"BOLÍVAR",""]
["ACHI","Municipio",13006,"BOLÍVAR",""]
["ARENAL","Municipio",13042,"BOLÍVAR",""]
["ARJONA","Municipio",13052,"BOLÍVAR",""]
["ARROYOHONDO","Municipio",13062,"BOLÍVAR",""]
["BARRANCO DE LOBA","Municipio",13074,"BOLÍVAR",""]
["CICUCO","Municipio",13188,"BOLÍVAR",""]
["CÓRDOBA","Municipio",13212,"BOLÍVAR",""]
["CLEMENCIA","Municipio",13222,"BOLÍVAR",""]
["EL GUAMO","Municipio",13248,"BOLÍVAR",""]
["EL PEÑON","Municipio",13268,"BOLÍVAR",""]
["MAHATES","Municipio",13433,"BOLÍVAR",""]
["MARIA LA BAJA","Municipio",13442,"BOLÍVAR",""]
["MONTECRISTO","Municipio",13458,"BOLÍVAR",""]
["MOMPOS","Municipio",13468,"BOLÍVAR",""]
["NOROSI","Municipio",13490,"BOLÍVAR",""]
["PINILLOS","Municipio",13549,"BOLÍVAR",""]
["REGIDOR","Municipio",13580,"BOLÍVAR",""]
["RIO VIEJO","Municipio",13600,"BOLÍVAR",""]
["SAN CRISTOBAL","Municipio",13620,"BOLÍVAR",""]
["SAN ESTANISLAO","Municipio",13647,"BOLÍVAR",""]
["SAN JACINTO","Municipio",13654,"BOLÍVAR",""]
["SAN JACINTO DEL CAUCA","Municipio",13655,"BOLÍVAR",""]
["SAN JUAN DE NEPOMUCENO","Municipio",13657,"BOLÍVAR",""]
["SANTA CATALINA","Municipio",13673,"BOLÍVAR",""]
["SANTA ROSA DEL SUR","Municipio",13688,"BOLÍVAR",""]
["SIMITI","Municipio",13744,"BOLÍVAR",""]
["SOPLAVIENTO","Municipio",13760,"BOLÍVAR",""]
["TALAIGUA NUEVO","Municipio",13780,"BOLÍVAR",""]
["TIQUISIO","Municipio",13810,"BOLÍVAR",""]
["TURBACO","Municipio",13836,"BOLÍVAR",""]
["VILLANUEVA","Municipio",13873,"BOLÍVAR",""]
["TIBASOSA","Municipio",15806,"BOYACA",""]
["BOYACÁ_","Departamento",15999,"BOYACÁ",""]
["ALMEIDA","Municipio",15022,"BOYACÁ",""]
["AQUITANIA","Municipio",15047,"BOYACÁ",""]
["ARCABUCO","Municipio",15051,"BOYACÁ",""]
["BELEN","Municipio",15087,"BOYACÁ",""]
["BETEITIVA","Municipio",15092,"BOYACÁ",""]
["BOAVITA","Municipio",15097,"BOYACÁ",""]
["BOYACÁ.","Municipio",15104,"BOYACÁ",""]
["BRICEÑO","Municipio",15106,"BOYACÁ",""]
["BUENAVISTA","Municipio",15109,"BOYACÁ",""]
["CALDAS","Municipio",15131,"BOYACÁ",""]
["CAMPOHERMOSO","Municipio",15135,"BOYACÁ",""]
["CHINAVITA","Municipio",15172,"BOYACÁ",""]
["CHIQUINQUIRA","Municipio",15176,"BOYACÁ",""]
["CHISCAS","Municipio",15180,"BOYACÁ",""]
["CHITARAQUE","Municipio",15185,"BOYACÁ",""]
["CIENEGA","Municipio",15189,"BOYACÁ",""]
["COMBITA","Municipio",15204,"BOYACÁ",""]
["CORRALES","Municipio",15215,"BOYACÁ",""]
["COVARACHIA","Municipio",15218,"BOYACÁ",""]
["CUBARA","Municipio",15223,"BOYACÁ",""]
["CUCAITA","Municipio",15224,"BOYACÁ",""]
["CHIQUIZA","Municipio",15232,"BOYACÁ",""]
["CHIVOR","Municipio",15236,"BOYACÁ",""]
["DUITAMA","Municipio",15238,"BOYACÁ",""]
["EL COCUY","Municipio",15244,"BOYACÁ",""]
["EL ESPINO","Municipio",15248,"BOYACÁ",""]
["FIRAVITOBA","Municipio",15272,"BOYACÁ",""]
["GACHANTIVA","Municipio",15293,"BOYACÁ",""]
["GARAGOA","Municipio",15299,"BOYACÁ",""]
["GUACAMAYAS","Municipio",15317,"BOYACÁ",""]
["GUATEQUE","Municipio",15322,"BOYACÁ",""]
["GUAYATA","Municipio",15325,"BOYACÁ",""]
["GUICAN","Municipio",15332,"BOYACÁ",""]
["CERINZA","Municipio",15162,"BOYACÁ"]
["SIACHOQUE","Municipio",15740,"BOYACÁ"]
["TUNJA","Municipio",15001,"BOYACÁ"]
["CUITIVA","Municipio",15226,"BOYACÁ"]
["MOTAVITA","Municipio",15476,"BOYACÁ"]
["PANQUEBA","Municipio",15522,"BOYACÁ"]
["LA CAPILLA","Municipio",15380,"BOYACÁ"]
["MONIQUIRÁ","Municipio",15469,"BOYACÁ"]
["VIRACACHÁ","Municipio",15879,"BOYACÁ"]
["IZA","Municipio",15362,"BOYACÁ",""]
["JERICO","Municipio",15368,"BOYACÁ",""]
["LABRANZAGRANDE","Municipio",15377,"BOYACÁ",""]
["LA UVITA","Municipio",15403,"BOYACÁ",""]
["VILLA DE LEYVA","Municipio",15407,"BOYACÁ",""]
["MACANAL","Municipio",15425,"BOYACÁ",""]
["MARIPI","Municipio",15442,"BOYACÁ",""]
["MIRAFLORES","Municipio",15455,"BOYACÁ",""]
["MONGUI","Municipio",15466,"BOYACÁ",""]
["MUZO","Municipio",15480,"BOYACÁ",""]
["NOBSA","Municipio",15491,"BOYACÁ",""]
["NUEVO COLON","Municipio",15494,"BOYACÁ",""]
["OICATA","Municipio",15500,"BOYACÁ",""]
["OTANCHE","Municipio",15507,"BOYACÁ",""]
["PACHAVITA","Municipio",15511,"BOYACÁ",""]
["PAEZ","Municipio",15514,"BOYACÁ",""]
["PAIPA","Municipio",15516,"BOYACÁ",""]
["PAJARITO","Municipio",15518,"BOYACÁ",""]
["PAUNA","Municipio",15531,"BOYACÁ",""]
["PAYA","Municipio",15533,"BOYACÁ",""]
["PAZ DEL RIO","Municipio",15537,"BOYACÁ",""]
["PESCA","Municipio",15542,"BOYACÁ",""]
["QUIPAMA","Municipio",15580,"BOYACÁ",""]
["RAMIRIQUI","Municipio",15599,"BOYACÁ",""]
["RAQUIRA","Municipio",15600,"BOYACÁ",""]
["RONDON","Municipio",15621,"BOYACÁ",""]
["SABOYA","Municipio",15632,"BOYACÁ",""]
["SACHICA","Municipio",15638,"BOYACÁ",""]
["SAMACA","Municipio",15646,"BOYACÁ",""]
["SAN EDUARDO","Municipio",15660,"BOYACÁ",""]
["SAN JOSE DE PARE","Municipio",15664,"BOYACÁ",""]
["SAN LUIS DE GACENO","Municipio",15667,"BOYACÁ",""]
["SAN MATEO","Municipio",15673,"BOYACÁ",""]
["SAN MIGUEL DE SEMA","Municipio",15676,"BOYACÁ",""]
["SAN PABLO DE BORBUR","Municipio",15681,"BOYACÁ",""]
["SANTANA","Municipio",15686,"BOYACÁ"]
["SANTA MARÍA","Municipio",15690,"BOYACÁ",""]
["SANTA ROSA DE VITERBO","Municipio",15693,"BOYACÁ",""]
["SANTA SOFIA","Municipio",15696,"BOYACÁ",""]
["SOATA","Municipio",15753,"BOYACÁ",""]
["SOCOTA","Municipio",15755,"BOYACÁ",""]
["SOGAMOSO","Municipio",15759,"BOYACÁ",""]
["SORA","Municipio",15762,"BOYACÁ",""]
["SOTAQUIRA","Municipio",15763,"BOYACÁ",""]
["SORACA","Municipio",15764,"BOYACÁ",""]
["SUTAMARCHAN","Municipio",15776,"BOYACÁ",""]
["SUTATENZA","Municipio",15778,"BOYACÁ",""]
["TASCO","Municipio",15790,"BOYACÁ",""]
["TENZA","Municipio",15798,"BOYACÁ",""]
["TIBANA","Municipio",15804,"BOYACÁ",""]
["TINJACA","Municipio",15808,"BOYACÁ",""]
["TIPACOQUE","Municipio",15810,"BOYACÁ",""]
["TOCA","Municipio",15814,"BOYACÁ",""]
["TOPAGA","Municipio",15820,"BOYACÁ",""]
["TOTA","Municipio",15822,"BOYACÁ",""]
["TURMEQUE","Municipio",15835,"BOYACÁ",""]
["TUTA","Municipio",15837,"BOYACÁ",""]
["TUTASA","Municipio",15839,"BOYACÁ",""]
["UMBITA","Municipio",15842,"BOYACÁ",""]
["VENTAQUEMADA","Municipio",15861,"BOYACÁ",""]
["ZETAQUIRA","Municipio",15897,"BOYACÁ",""]
["CALDAS_","Departamento",17999,"CALDAS",""]
["MANIZALES","Municipio",17001,"CALDAS",""]
["AGUADAS","Municipio",17013,"CALDAS",""]
["ANSERMA","Municipio",17042,"CALDAS",""]
["ARANZAZU","Municipio",17050,"CALDAS",""]
["BELALCAZAR","Municipio",17088,"CALDAS",""]
["CHINCHINA","Municipio",17174,"CALDAS",""]
["FILADELFIA","Municipio",17272,"CALDAS",""]
["LA DORADA","Municipio",17380,"CALDAS",""]
["LA MERCED","Municipio",17388,"CALDAS",""]
["MANZANARES","Municipio",17433,"CALDAS",""]
["MARMATO","Municipio",17442,"CALDAS",""]
["MARQUETALIA","Municipio",17444,"CALDAS",""]
["MARULANDA","Municipio",17446,"CALDAS",""]
["NEIRA","Municipio",17486,"CALDAS",""]
["NORCASIA","Municipio",17495,"CALDAS",""]
["PACORA","Municipio",17513,"CALDAS",""]
["PALESTINA","Municipio",17524,"CALDAS",""]
["PENSILVANIA","Municipio",17541,"CALDAS",""]
["RIOSUCIO","Municipio",17614,"CALDAS",""]
["RISARALDA","Municipio",17616,"CALDAS",""]
["SALAMINA","Municipio",17653,"CALDAS",""]
["SAMANA","Municipio",17662,"CALDAS",""]
["SAN JOSE","Municipio",17665,"CALDAS",""]
["SUPIA","Municipio",17777,"CALDAS",""]
["VICTORIA","Municipio",17867,"CALDAS",""]
["VILLAMARIA","Municipio",17873,"CALDAS",""]
["VITERBO","Municipio",17877,"CALDAS",""]
["PUERTO RICO","Municipio",185921,"CAQUETA",""]
["CAQUETÁ_","Departamento",18999,"CAQUETÁ",""]
["FLORENCIA","Municipio",18001,"CAQUETÁ",""]
["ALBANIA","Municipio",18029,"CAQUETÁ",""]
["BELEN DE LOS ANDAQUIES","Municipio",18094,"CAQUETÁ",""]
["CARTAGENA DEL CHAIRA","Municipio",18150,"CAQUETÁ",""]
["CURILLO","Municipio",18205,"CAQUETÁ",""]
["EL DONCELLO","Municipio",18247,"CAQUETÁ",""]
["PAUJIL","Municipio",18256,"CAQUETÁ",""]
["LA MONTAÑITA","Municipio",18410,"CAQUETÁ",""]
["MILAN","Municipio",18460,"CAQUETÁ",""]
["MORELIA","Municipio",18479,"CAQUETÁ",""]
["PUERTO RICO","Municipio",18592,"CAQUETÁ",""]
["SAN JOSE DEL FRAGUA","Municipio",18610,"CAQUETÁ",""]
["SAN VICENTE DEL CAGUAN","Municipio",18753,"CAQUETÁ",""]
["SOLANO","Municipio",18756,"CAQUETÁ",""]
["SOLITA ","Municipio",18785,"CAQUETÁ",""]
["VALPARAÍSO","Municipio",18860,"CAQUETÁ",""]
["CASANARE_","Departamento",85999,"CASANARE",""]
["CAUCA_","Departamento",19999,"CAUCA",""]
["POPAYAN","Municipio",19001,"CAUCA",""]
["ARGELIA","Municipio",19050,"CAUCA",""]
["BALBOA","Municipio",19075,"CAUCA",""]
["BOLÍVAR","Municipio",19100,"CAUCA",""]
["BUENOS AIRES","Municipio",19110,"CAUCA",""]
["CAJIBIO","Municipio",19130,"CAUCA",""]
["CALOTO","Municipio",19142,"CAUCA",""]
["EL TAMBO","Municipio",19256,"CAUCA",""]
["FLORENCIA","Municipio",19290,"CAUCA",""]
["GUACHENE","Municipio",19300,"CAUCA",""]
["GUAPI","Municipio",19318,"CAUCA",""]
["INZA","Municipio",19355,"CAUCA",""]
["JAMBALO","Municipio",19364,"CAUCA",""]
["LA SIERRA","Municipio",19392,"CAUCA",""]
["LA VEGA","Municipio",19397,"CAUCA",""]
["LOPEZ DE MICAY","Municipio",19418,"CAUCA",""]
["MERCADERES","Municipio",19450,"CAUCA",""]
["MORALES","Municipio",19473,"CAUCA",""]
["PADILLA","Municipio",19513,"CAUCA",""]
["PAEZ (BELALCAZAR","Municipio",19517,"CAUCA",""]
["PATIA (EL BORDO)","Municipio",19532,"CAUCA",""]
["PIAMONTE","Municipio",19533,"CAUCA",""]
["PIENDAMO","Municipio",19548,"CAUCA",""]
["PUERTO TEJADA","Municipio",19573,"CAUCA",""]
["PURACE","Municipio",19585,"CAUCA",""]
["ROSAS","Municipio",19622,"CAUCA",""]
["SAN SEBASTIAN","Municipio",19693,"CAUCA"]
["SANTANDER DE QUILICHAO","Municipio",19698,"CAUCA"]
["SANTA ROSA","Municipio",19701,"CAUCA"]
["SILVIA","Municipio",19743,"CAUCA"]
["SOTARA","Municipio",19760,"CAUCA",""]
["SUAREZ","Municipio",19780,"CAUCA",""]
["TIMBIO","Municipio",19807,"CAUCA"]
["TIMBIQUI","Municipio",19809,"CAUCA",""]
["TORIBIO","Municipio",19821,"CAUCA",""]
["TOTORO","Municipio",19824,"CAUCA",""]
["CESAR_","Departamento",20999,"CESAR",""]
["AGUSTIN CODAZZI","Municipio",20013,"CESAR"]
["CHOCÓ_","Departamento",27999,"CHOCÓ",""]
["ACANDÍ","Municipio",27006,"CHOCÓ",""]
["CANTÓN DEL SAN PABLO","Municipio",27131,"CHOCÓ",""]
["MEDIO BAUDÓ","Municipio",27430,"CHOCÓ",""]
["MEDIO SAN JUAN","Municipio",27450,"CHOCÓ"]
["RIO QUITO","Municipio",27600,"CHOCÓ",""]
["SAN JOSÉ DEL PALMAR","Municipio",27660,"CHOCÓ",""]
["UNIÓN PANAMERICANA","Municipio",27810,"CHOCÓ",""]
["MONTERIA","Municipio",230011,"CORDOBA",""]
["CÓRDOBA_","Departamento",23999,"CÓRDOBA",""]
["MONTERIA","Municipio",23001,"CÓRDOBA",""]
["AYAPEL","Municipio",23068,"CÓRDOBA",""]
["BUENAVISTA","Municipio",23079,"CÓRDOBA",""]
["CANALETE","Municipio",23090,"CÓRDOBA",""]
["CHINU","Municipio",23182,"CÓRDOBA",""]
["COTORRA","Municipio",23300,"CÓRDOBA",""]
["LA APARTADA","Municipio",23350,"CÓRDOBA",""]
["LOS CÓRDOBAS","Municipio",23419,"CÓRDOBA",""]
["MOÑITOS","Municipio",23500,"CÓRDOBA",""]
["PLANETA RICA","Municipio",23555,"CÓRDOBA",""]
["PUEBLO NUEVO","Municipio",23570,"CÓRDOBA",""]
["PUERTO ESCONDIDO","Municipio",23574,"CÓRDOBA",""]
["PUERTO LIBERTADOR","Municipio",23580,"CÓRDOBA",""]
["SAN BERNARDO DEL VIENTO","Municipio",23675,"CÓRDOBA",""]
["SAN PELAYO","Municipio",23686,"CÓRDOBA",""]
["TIERRALTA","Municipio",23807,"CÓRDOBA",""]
["VALENCIA","Municipio",23855,"CÓRDOBA",""]
["CUNDINAMARCA_","Departamento",25999,"CUNDINAMARCA",""]
["AGUA DE DIOS","Municipio",25001,"CUNDINAMARCA",""]
["ALBAN","Municipio",25019,"CUNDINAMARCA",""]
["ANAPOIMA","Municipio",25035,"CUNDINAMARCA",""]
["ANOLAIMA","Municipio",25040,"CUNDINAMARCA",""]
["ARBELAEZ","Municipio",25053,"CUNDINAMARCA",""]
["BELTRAN","Municipio",25086,"CUNDINAMARCA",""]
["BITUIMA","Municipio",25095,"CUNDINAMARCA",""]
["BOJACA","Municipio",25099,"CUNDINAMARCA",""]
["CABRERA","Municipio",25120,"CUNDINAMARCA",""]
["CACHIPAY","Municipio",25123,"CUNDINAMARCA",""]
["CAJICA","Municipio",25126,"CUNDINAMARCA",""]
["CAPARRAPI","Municipio",25148,"CUNDINAMARCA",""]
["CAQUEZA","Municipio",25151,"CUNDINAMARCA",""]
["CARMEN DE CARUPA","Municipio",25154,"CUNDINAMARCA",""]
["CHAGUANI","Municipio",25168,"CUNDINAMARCA",""]
["CHIPAQUE","Municipio",25178,"CUNDINAMARCA",""]
["CHOACHI","Municipio",25181,"CUNDINAMARCA",""]
["CHOCÓNTA","Municipio",25183,"CUNDINAMARCA",""]
["CUCUNUBA","Municipio",25224,"CUNDINAMARCA",""]
["EL COLEGIO","Municipio",25245,"CUNDINAMARCA",""]
["EL PEÑON","Municipio",25258,"CUNDINAMARCA",""]
["EL ROSAL","Municipio",25260,"CUNDINAMARCA",""]
["FACATATIVA","Municipio",25269,"CUNDINAMARCA",""]
["FOMEQUE","Municipio",25279,"CUNDINAMARCA",""]
["FOSCA","Municipio",25281,"CUNDINAMARCA",""]
["FUQUENE","Municipio",25288,"CUNDINAMARCA",""]
["FUSAGASUGA","Municipio",25290,"CUNDINAMARCA",""]
["GACHALA","Municipio",25293,"CUNDINAMARCA",""]
["GACHANCIPA","Municipio",25295,"CUNDINAMARCA",""]
["GACHETA","Municipio",25297,"CUNDINAMARCA",""]
["GAMA","Municipio",25299,"CUNDINAMARCA",""]
["GIRARDOT","Municipio",25307,"CUNDINAMARCA",""]
["GRANADA","Municipio",25312,"CUNDINAMARCA",""]
["GUACHETA","Municipio",25317,"CUNDINAMARCA",""]
["GUADUAS","Municipio",25320,"CUNDINAMARCA",""]
["GUASCA","Municipio",25322,"CUNDINAMARCA",""]
["GUATAQUI","Municipio",25324,"CUNDINAMARCA",""]
["GUATAVITA","Municipio",25326,"CUNDINAMARCA",""]
["GUAYABAL DE SIQUIMA","Municipio",25328,"CUNDINAMARCA",""]
["GUAYABETAL","Municipio",25335,"CUNDINAMARCA",""]
["GUTIERREZ","Municipio",25339,"CUNDINAMARCA",""]
["JERUSALEN","Municipio",25368,"CUNDINAMARCA",""]
["JUNIN","Municipio",25372,"CUNDINAMARCA",""]
["LA CALERA","Municipio",25377,"CUNDINAMARCA",""]
["LA MESA","Municipio",25386,"CUNDINAMARCA",""]
["LA PALMA","Municipio",25394,"CUNDINAMARCA",""]
["LA PEÑA","Municipio",25398,"CUNDINAMARCA",""]
["LA VEGA","Municipio",25402,"CUNDINAMARCA",""]
["LENGUAZAQUE","Municipio",25407,"CUNDINAMARCA",""]
["MACHETA","Municipio",25426,"CUNDINAMARCA",""]
["MADRID","Municipio",25430,"CUNDINAMARCA",""]
["MANTA","Municipio",25436,"CUNDINAMARCA",""]
["MEDINA","Municipio",25438,"CUNDINAMARCA",""]
["MOSQUERA","Municipio",25473,"CUNDINAMARCA",""]
["NARIÑO","Municipio",25483,"CUNDINAMARCA",""]
["NEMOCON","Municipio",25486,"CUNDINAMARCA",""]
["NILO","Municipio",25488,"CUNDINAMARCA",""]
["NIMAIMA","Municipio",25489,"CUNDINAMARCA",""]
["NOCAIMA","Municipio",25491,"CUNDINAMARCA",""]
["VENECIA (OSPINA PEREZ)","Municipio",25506,"CUNDINAMARCA",""]
["PACHO","Municipio",25513,"CUNDINAMARCA",""]
["PAIME","Municipio",25518,"CUNDINAMARCA",""]
["PANDI","Municipio",25524,"CUNDINAMARCA",""]
["PARATEBUENO","Municipio",25530,"CUNDINAMARCA",""]
["PASCA","Municipio",25535,"CUNDINAMARCA",""]
["PUERTO SALGAR","Municipio",25572,"CUNDINAMARCA",""]
["PULI","Municipio",25580,"CUNDINAMARCA",""]
["QUEBRADANEGRA","Municipio",25592,"CUNDINAMARCA",""]
["QUETAME","Municipio",25594,"CUNDINAMARCA",""]
["QUIPILE","Municipio",25596,"CUNDINAMARCA",""]
["APULO","Municipio",25599,"CUNDINAMARCA",""]
["RICAURTE","Municipio",25612,"CUNDINAMARCA",""]
["SAN  ANTONIO DEL  TEQUENDAMA","Municipio",25645,"CUNDINAMARCA",""]
["SAN BERNARDO","Municipio",25649,"CUNDINAMARCA",""]
["SAN CAYETANO","Municipio",25653,"CUNDINAMARCA",""]
["SAN FRANCISCO","Municipio",25658,"CUNDINAMARCA",""]
["SAN JUAN DE RIOSECO","Municipio",25662,"CUNDINAMARCA",""]
["SASAIMA","Municipio",25718,"CUNDINAMARCA",""]
["SESQUILE","Municipio",25736,"CUNDINAMARCA",""]
["SIBATE","Municipio",25740,"CUNDINAMARCA",""]
["SILVANIA","Municipio",25743,"CUNDINAMARCA",""]
["SIMIJACA","Municipio",25745,"CUNDINAMARCA",""]
["SOACHA","Municipio",25754,"CUNDINAMARCA",""]
["SOPO","Municipio",25758,"CUNDINAMARCA",""]
["SUBACHOQUE","Municipio",25769,"CUNDINAMARCA",""]
["SUESCA","Municipio",25772,"CUNDINAMARCA",""]
["SUPATA","Municipio",25777,"CUNDINAMARCA",""]
["SUSA","Municipio",25779,"CUNDINAMARCA",""]
["SUTATAUSA","Municipio",25781,"CUNDINAMARCA",""]
["TABIO","Municipio",25785,"CUNDINAMARCA",""]
["TAUSA","MUNICIPIO",25793,"CUNDINAMARCA",""]
["TENA","Municipio",25797,"CUNDINAMARCA",""]
["TIBACUY","Municipio",25805,"CUNDINAMARCA",""]
["TIBIRITA","Municipio",25807,"CUNDINAMARCA",""]
["TOCAIMA","Municipio",25815,"CUNDINAMARCA",""]
["TOPAIPI","Municipio",25823,"CUNDINAMARCA",""]
["UBALA","Municipio",25839,"CUNDINAMARCA",""]
["UBAQUE","Municipio",25841,"CUNDINAMARCA",""]
["UBATE","Municipio",25843,"CUNDINAMARCA",""]
["UNE","Municipio",25845,"CUNDINAMARCA",""]
["UTICA","Municipio",25851,"CUNDINAMARCA",""]
["VERGARA","Municipio",25862,"CUNDINAMARCA",""]
["VIANI","Municipio",25867,"CUNDINAMARCA",""]
["VILLAGOMEZ","Municipio",25871,"CUNDINAMARCA",""]
["VILLAPINZON","Municipio",25873,"CUNDINAMARCA",""]
["VILLETA","Municipio",25875,"CUNDINAMARCA",""]
["VIOTA","Municipio",25878,"CUNDINAMARCA",""]
["YACOPI","Municipio",25885,"CUNDINAMARCA",""]
["ZIPACON","Municipio",25898,"CUNDINAMARCA",""]
["ZIPAQUIRA","Municipio",25899,"CUNDINAMARCA",""]
["GUAINÍA_","Departamento",94999,"GUAINÍA",""]
["INIRIDA","Municipio",94001,"GUAINÍA",""]
["BARRANCO MINAS","ANM",94343,"GUAINÍA",""]
["MAPIRIPANA","ANM",94663,"GUAINÍA",""]
["SAN FELIPE","ANM",94883,"GUAINÍA",""]
["PUERTO COLOMBIA","ANM",94884,"GUAINÍA",""]
["LA GUADALUPE","ANM",94885,"GUAINÍA",""]
["CACAHUAL","ANM",94886,"GUAINÍA",""]
["PANA PANA","ANM",94887,"GUAINÍA",""]
["MORICHAL","ANM",94888,"GUAINÍA",""]
["GUAVIARE_","Departamento",95999,"GUAVIARE",""]
["SAN JOSE DEL GUAVIARE","Municipio",95001,"GUAVIARE",""]
["CALAMAR","Municipio",95015,"GUAVIARE",""]
["EL RETORNO","Municipio",95025,"GUAVIARE",""]
["MIRAFLORES","Municipio",95200,"GUAVIARE",""]
["HUILA_","Departamento",41999,"HUILA",""]
["NEIVA.","Municipio",41001,"HUILA",""]
["ACEVEDO","Municipio",41006,"HUILA",""]
["AGRADO","Municipio",41013,"HUILA",""]
["AIPE","Municipio",41016,"HUILA",""]
["ALGECIRAS","Municipio",41020,"HUILA",""]
["ALTAMIRA","Municipio",41026,"HUILA",""]
["BARAYA","Municipio",41078,"HUILA",""]
["COLOMBIA","Municipio",41206,"HUILA",""]
["GARZON","Municipio",41298,"HUILA",""]
["GIGANTE","Municipio",41306,"HUILA",""]
["GUADALUPE","Municipio",41319,"HUILA",""]
["IQUIRA","Municipio",41357,"HUILA",""]
["ISNOS","Municipio",41359,"HUILA",""]
["LA ARGENTINA","Municipio",41378,"HUILA",""]
["LA PLATA","Municipio",41396,"HUILA",""]
["NATAGA","Municipio",41483,"HUILA",""]
["OPORAPA","Municipio",41503,"HUILA",""]
["PAICOL","Municipio",41518,"HUILA",""]
["PALERMO","Municipio",41524,"HUILA",""]
["PALESTINA","Municipio",41530,"HUILA",""]
["PITAL","Municipio",41548,"HUILA",""]
["PITALITO","Municipio",41551,"HUILA",""]
["RIVERA","Municipio",41615,"HUILA",""]
["SALADOBLANCO","Municipio",41660,"HUILA",""]
["SAN AGUSTIN","Municipio",41668,"HUILA",""]
["SANTA MARIA","Municipio",41676,"HUILA",""]
["SUAZA","Municipio",41770,"HUILA",""]
["TARQUI","Municipio",41791,"HUILA",""]
["TESALIA","Municipio",41797,"HUILA",""]
["TELLO","Municipio",41799,"HUILA",""]
["TERUEL","Municipio",41801,"HUILA",""]
["TIMANA","Municipio",41807,"HUILA",""]
["VILLAVIEJA","Municipio",41872,"HUILA",""]
["LA_GUAJIRA_","Departamento",44999,"LA GUAJIRA",""]
["MAGDALENA_","Departamento",47999,"MAGDALENA",""]
["META_","Departamento",50999,"META",""]
["ACACIAS","Municipio",50006,"META",""]
["BARRANCA DE UPIA","Municipio",50110,"META",""]
["CABUYARO","Municipio",50124,"META",""]
["CUMARAL","Municipio",50226,"META",""]
["EL CALVARIO","Municipio",50245,"META",""]
["EL CASTILLO","Municipio",50251,"META",""]
["EL DORADO","Municipio",50270,"META",""]
["FUENTE DE ORO","Municipio",50287,"META",""]
["GRANADA","Municipio",50313,"META",""]
["GUAMAL","Municipio",50318,"META",""]
["MAPIRIPAN","Municipio",50325,"META",""]
["MESETAS","Municipio",50330,"META",""]
["LA URIBE","Municipio",50370,"META",""]
["LEJANIAS","Municipio",50400,"META",""]
["PUERTO CONCORDIA","Municipio",50450,"META",""]
["PUERTO GAITAN","Municipio",50568,"META",""]
["PUERTO LOPEZ","Municipio",50573,"META",""]
["PUERTO LLERAS","Municipio",50577,"META",""]
["PUERTO RICO","Municipio",50590,"META",""]
["SAN CARLOS DE GUAROA","Municipio",50680,"META",""]
["SAN JUAN DE ARAMA","Municipio",50683,"META",""]
["NARIÑO_","Departamento",52999,"NARIÑO",""]
["PASTO","Municipio",52001,"NARIÑO",""]
["ALBAN","Municipio",52019,"NARIÑO",""]
["ALDANA","Municipio",52022,"NARIÑO",""]
["ANCUYA","Municipio",52036,"NARIÑO",""]
["BARBACOAS","Municipio",52079,"NARIÑO",""]
["BELEN","Municipio",52083,"NARIÑO",""]
["BUESACO","Municipio",52110,"NARIÑO",""]
["CONTADERO","Municipio",52210,"NARIÑO",""]
["CÓRDOBA","Municipio",52215,"NARIÑO"]
["CUASPUD-CARLOSAMA","Municipio",52224,"NARIÑO",""]
["CUMBAL","Municipio",52227,"NARIÑO",""]
["CHACHAGUI","Municipio",52240,"NARIÑO",""]
["EL PEÑOL","Municipio",52254,"NARIÑO",""]
["EL ROSARIO","Municipio",52256,"NARIÑO",""]
["EL TABLON","Municipio",52258,"NARIÑO",""]
["EL TAMBO","Municipio",52260,"NARIÑO",""]
["FUNES","Municipio",52287,"NARIÑO",""]
["GUACHUCAL","MUNICIPIO",52317,"NARIÑO",""]
["GUALMATAN","Municipio",52323,"NARIÑO",""]
["ILES","Municipio",52352,"NARIÑO"]
["PROVIDENCIA","Municipio",52565,"NARIÑO"]
["IMUES","Municipio",52354,"NARIÑO",""]
["IPIALES","Municipio",52356,"NARIÑO",""]
["LA CRUZ","Municipio",52378,"NARIÑO",""]
["LA FLORIDA","Municipio",52381,"NARIÑO",""]
["LA LLANADA","Municipio",52385,"NARIÑO",""]
["LA UNION","Municipio",52399,"NARIÑO",""]
["LINARES","Municipio",52411,"NARIÑO",""]
["LOS ANDES","Municipio",52418,"NARIÑO",""]
["MALLAMA","Municipio",52435,"NARIÑO",""]
["MOSQUERA","Municipio",52473,"NARIÑO",""]
["NARIÑO.","Municipio",52480,"NARIÑO",""]
["OSPINA","Municipio",52506,"NARIÑO",""]
["POLICARPA","Municipio",52540,"NARIÑO",""]
["POTOSI","Municipio",52560,"NARIÑO",""]
["PUERRES","Municipio",52573,"NARIÑO",""]
["PUPIALES","Municipio",52585,"NARIÑO",""]
["RICAURTE","Municipio",52612,"NARIÑO",""]
["ROBERTO PAYAN","Municipio",52621,"NARIÑO",""]
["SANDONA","Municipio",52683,"NARIÑO",""]
["SAN BERNARDO","Municipio",52685,"NARIÑO",""]
["SAN LORENZO","Municipio",52687,"NARIÑO",""]
["SAN PABLO","Municipio",52693,"NARIÑO",""]
["SAN PEDRO DE CARTAGO","Municipio",52694,"NARIÑO",""]
["SANTA CRUZ","Municipio",52699,"NARIÑO",""]
["SAPUYES","Municipio",52720,"NARIÑO",""]
["TAMINANGO","Municipio",52786,"NARIÑO",""]
["TANGUA","Municipio",52788,"NARIÑO",""]
["TUMACO","Municipio",52835,"NARIÑO",""]
["TUQUERRES","Municipio",52838,"NARIÑO",""]
["YACUANQUER","Municipio",52885,"NARIÑO",""]
["GUAITARILLA","Municipio",52320,"NARIÑO",""]
["ARBOLEDA","Municipio",52051,"NARIÑO",""]
["NORTE_DE_SANTANDER_","Departamento",54999,"NORTE DE SANTANDER",""]
["ARBOLEDAS","Municipio",54051,"NORTE DE SANTANDER",""]
["BOCHALEMA","Municipio",54099,"NORTE DE SANTANDER",""]
["CACOTA","Municipio",54125,"NORTE DE SANTANDER",""]
["CACHIRA","Municipio",54128,"NORTE DE SANTANDER",""]
["CHINACOTA","Municipio",54172,"NORTE DE SANTANDER",""]
["DURANIA","Municipio",54239,"NORTE DE SANTANDER",""]
["EL CARMEN","Municipio",54245,"NORTE DE SANTANDER",""]
["EL ZULIA","Municipio",54261,"NORTE DE SANTANDER",""]
["HACARI","Municipio",54344,"NORTE DE SANTANDER",""]
["HERRAN","Municipio",54347,"NORTE DE SANTANDER",""]
["LABATECA","Municipio",54377,"NORTE DE SANTANDER",""]
["LA ESPERANZA","Municipio",54385,"NORTE DE SANTANDER",""]
["LOS PATIOS","Municipio",54405,"NORTE DE SANTANDER",""]
["LOURDES","Municipio",54418,"NORTE DE SANTANDER",""]
["PAMPLONA","Municipio",54518,"NORTE DE SANTANDER",""]
["PAMPLONITA","Municipio",54520,"NORTE DE SANTANDER",""]
["PUERTO SANTANDER","Municipio",54553,"NORTE DE SANTANDER",""]
["SALAZAR DE LAS PALMAS","Municipio",54660,"NORTE DE SANTANDER",""]
["SAN CAYETANO","Municipio",54673,"NORTE DE SANTANDER",""]
["SANTIAGO","Municipio",54680,"NORTE DE SANTANDER",""]
["SILOS","Municipio",54743,"NORTE DE SANTANDER",""]
["TIBU","Municipio",54810,"NORTE DE SANTANDER",""]
["TOLEDO","Municipio",54820,"NORTE DE SANTANDER",""]
["VILLACARO","Municipio",54871,"NORTE DE SANTANDER",""]
["VILLA DEL ROSARIO","Municipio",54874,"NORTE DE SANTANDER",""]
["PUTUMAYO_","Departamento",86999,"PUTUMAYO",""]
["PUERTO CAICEDO","Municipio",86569,"PUTUMAYO",""]
["SANTIAGO","Municipio",86760,"PUTUMAYO"]
["QUINDIO_","Departamento",63999,"QUINDIO",""]
["ARMENIA","Municipio",63001,"QUINDIO",""]
["BUENAVISTA","Municipio",63111,"QUINDIO",""]
["CALARCA","Municipio",63130,"QUINDIO",""]
["CIRCASIA","Municipio",63190,"QUINDIO",""]
["CÓRDOBA","Municipio",63212,"QUINDIO",""]
["FILANDIA","Municipio",63272,"QUINDIO",""]
["GENOVA","Municipio",63302,"QUINDIO",""]
["LA TEBAIDA","Municipio",63401,"QUINDIO",""]
["MONTENEGRO","Municipio",63470,"QUINDIO",""]
["PIJAO","Municipio",63548,"QUINDIO",""]
["QUIMBAYA","Municipio",63594,"QUINDIO",""]
["SALENTO","Municipio",63690,"QUINDIO",""]
["RISARALDA_","Departamento",66999,"RISARALDA",""]
["PEREIRA","Municipio",66001,"RISARALDA",""]
["APIA","Municipio",66045,"RISARALDA",""]
["BALBOA","Municipio",66075,"RISARALDA",""]
["BELEN DE UMBRIA","Municipio",66088,"RISARALDA",""]
["GUATICA","Municipio",66318,"RISARALDA",""]
["LA CELIA","Municipio",66383,"RISARALDA",""]
["MARSELLA","Municipio",66440,"RISARALDA",""]
["MISTRATO","Municipio",66456,"RISARALDA",""]
["PUEBLO RICO","Municipio",66572,"RISARALDA",""]
["QUINCHIA","Municipio",66594,"RISARALDA",""]
["SANTA ROSA DE CABAL","Municipio",66682,"RISARALDA",""]
["SANTUARIO","Municipio",66687,"RISARALDA",""]
["SAN_ANDRÉS_","Departamento",88999,"SAN ANDRÉS",""]
["SAN ANDRÉS.","Municipio",88001,"SAN ANDRÉS",""]
["PROVIDENCIA","Municipio",88564,"SAN ANDRÉS",""]
["SANTANDER_","Departamento",68999,"SANTANDER",""]
["AGUADA","Municipio",68013,"SANTANDER",""]
["ALBANIA","Municipio",68020,"SANTANDER",""]
["ARATOCA","Municipio",68051,"SANTANDER",""]
["BARBOSA","Municipio",68077,"SANTANDER",""]
["BARICHARA","Municipio",68079,"SANTANDER",""]
["BETULIA","Municipio",68092,"SANTANDER",""]
["CALIFORNIA","Municipio",68132,"SANTANDER",""]
["CAPITANEJO","Municipio",68147,"SANTANDER"]
["CARCASI","Municipio",68152,"SANTANDER",""]
["CERRITO","Municipio",68162,"SANTANDER",""]
["CHARALA","Municipio",68167,"SANTANDER",""]
["CHIMA","Municipio",68176,"SANTANDER",""]
["CHIPATA","Municipio",68179,"SANTANDER",""]
["CIMITARRA","Municipio",68190,"SANTANDER",""]
["CONCEPCION","Municipio",68207,"SANTANDER",""]
["CONFINES","Municipio",68209,"SANTANDER",""]
["CONTRATACION","Municipio",68211,"SANTANDER",""]
["COROMORO","Municipio",68217,"SANTANDER",""]
["CURITI","Municipio",68229,"SANTANDER",""]
["EL CARMEN DE CHUCURI","Municipio",68235,"SANTANDER",""]
["EL PEÑON","Municipio",68250,"SANTANDER",""]
["EL PLAYON","Municipio",68255,"SANTANDER",""]
["ENCINO","Municipio",68264,"SANTANDER",""]
["ENCISO","Municipio",68266,"SANTANDER",""]
["FLORIAN","Municipio",68271,"SANTANDER",""]
["FLORIDABLANCA","Municipio",68276,"SANTANDER",""]
["GALAN","Municipio",68296,"SANTANDER",""]
["GÁMBITA","Municipio",68298,"SANTANDER",""]
["GIRON","Municipio",68307,"SANTANDER",""]
["GUACA","Municipio",68318,"SANTANDER",""]
["GUADALUPE","Municipio",68320,"SANTANDER",""]
["GUAVATA","Municipio",68324,"SANTANDER",""]
["GUEPSA","Municipio",68327,"SANTANDER",""]
["HATO","Municipio",68344,"SANTANDER",""]
["JESUS MARIA","Municipio",68368,"SANTANDER",""]
["LA BELLEZA","Municipio",68377,"SANTANDER",""]
["LA PAZ","Municipio",68397,"SANTANDER",""]
["LEBRIJA","Municipio",68406,"SANTANDER",""]
["LOS SANTOS","Municipio",68418,"SANTANDER",""]
["MACARAVITA","Municipio",68425,"SANTANDER",""]
["MALAGA","Municipio",68432,"SANTANDER",""]
["MATANZA","Municipio",68444,"SANTANDER",""]
["MOGOTES","Municipio",68464,"SANTANDER",""]
["MOLAGAVITA","Municipio",68468,"SANTANDER",""]
["OCAMONTE","Municipio",68498,"SANTANDER",""]
["OIBA","Municipio",68500,"SANTANDER",""]
["PALMAR","Municipio",68522,"SANTANDER",""]
["PALMAS DEL SOCORRO","Municipio",68524,"SANTANDER",""]
["PARAMO","Municipio",68533,"SANTANDER",""]
["PINCHOTE","Municipio",68549,"SANTANDER",""]
["PUENTE NACIONAL","Municipio",68572,"SANTANDER",""]
["PUERTO PARRA","Municipio",68573,"SANTANDER",""]
["RIONEGRO","Municipio",68615,"SANTANDER",""]
["SABANA DE TORRES","Municipio",68655,"SANTANDER",""]
["SAN ANDRES","Municipio",68669,"SANTANDER",""]
["SAN BENITO","Municipio",68673,"SANTANDER",""]
["SAN GIL","Municipio",68679,"SANTANDER",""]
["SAN JOAQUIN","Municipio",68682,"SANTANDER",""]
["SAN VICENTE DE CHUCURI","Municipio",68689,"SANTANDER",""]
["SOCORRO","Municipio",68755,"SANTANDER",""]
["SUAITA","Municipio",68770,"SANTANDER",""]
["SUCRE","Municipio",68773,"SANTANDER",""]
["SURATA","Municipio",68780,"SANTANDER",""]
["TONA","Municipio",68820,"SANTANDER",""]
["VELEZ","Municipio",68861,"SANTANDER",""]
["VETAS","Municipio",68867,"SANTANDER",""]
["VILLANUEVA","Municipio",68872,"SANTANDER",""]
["ZAPATOCA","Municipio",68895,"SANTANDER",""]
["SUCRE_","Departamento",70999,"SUCRE",""]
["BUENAVISTA","Municipio",70110,"SUCRE",""]
["CAIMITO","Municipio",70124,"SUCRE",""]
["COLOSO","Municipio",70204,"SUCRE",""]
["CHALAN","Municipio",70230,"SUCRE",""]
["EL ROBLE","Municipio",70233,"SUCRE",""]
["GALERAS","Municipio",70235,"SUCRE",""]
["GUARANDA","Municipio",70265,"SUCRE",""]
["LA UNION","Municipio",70400,"SUCRE",""]
["LOS PALMITOS","Municipio",70418,"SUCRE",""]
["MAJAGUAL","Municipio",70429,"SUCRE",""]
["MORROA","Municipio",70473,"SUCRE",""]
["SAN ANTONIO DE PALMITO","Municipio",70523,"SUCRE",""]
["SAMPUES","Municipio",70670,"SUCRE",""]
["SAN BENITO ABAD","Municipio",70678,"SUCRE",""]
["SAN MARCOS","Municipio",70708,"SUCRE",""]
["SAN ONOFRE","Municipio",70713,"SUCRE",""]
["SINCE","Municipio",70742,"SUCRE",""]
["SUCRE.","Municipio",70771,"SUCRE",""]
["TOLU","Municipio",70820,"SUCRE",""]
["TOLUVIEJO","Municipio",70823,"SUCRE",""]
["TOLIMA_","Departamento",73999,"TOLIMA",""]
["IBAGUE","Municipio",73001,"TOLIMA",""]
["ALPUJARRA","Municipio",73024,"TOLIMA"]
["ALVARADO","Municipio",73026,"TOLIMA"]
["AMBALEMA","Municipio",73030,"TOLIMA"]
["ANZOATEGUI","Municipio",73043,"TOLIMA"]
["ARMERO (GUAYABAL)","Municipio",73055,"TOLIMA"]
["ATACO","Municipio",73067,"TOLIMA"]
["CAJAMARCA","Municipio",73124,"TOLIMA"]
["CASABIANCA","Municipio",73152,"TOLIMA"]
["COELLO","Municipio",73200,"TOLIMA"]
["COYAIMA","Municipio",73217,"TOLIMA"]
["CUNDAY","Municipio",73226,"TOLIMA"]
["ESPINAL","Municipio",73268,"TOLIMA"]
["FALAN","Municipio",73270,"TOLIMA"]
["FLANDES","Municipio",73275,"TOLIMA"]
["FRESNO","Municipio",73283,"TOLIMA"]
["GUAMO","Municipio",73319,"TOLIMA"]
["HERVEO","Municipio",73347,"TOLIMA"]
["HONDA","Municipio",73349,"TOLIMA"]
["ICONONZO","Municipio",73352,"TOLIMA"]
["LIBANO","Municipio",73411,"TOLIMA"]
["MARIQUITA","Municipio",73443,"TOLIMA"]
["MELGAR","Municipio",73449,"TOLIMA"]
["MURILLO","Municipio",73461,"TOLIMA"]
["NATAGAIMA","Municipio",73483,"TOLIMA"]
["ORTEGA","Municipio",73504,"TOLIMA"]
["PALOCABILDO","Municipio",73520,"TOLIMA"]
["PIEDRAS","Municipio",73547,"TOLIMA"]
["PLANADAS","Municipio",73555,"TOLIMA"]
["PRADO","Municipio",73563,"TOLIMA"]
["PURIFICACION","Municipio",73585,"TOLIMA"]
["RIOBLANCO","Municipio",73616,"TOLIMA"]
["RONCESVALLES","Municipio",73622,"TOLIMA"]
["ROVIRA","Municipio",73624,"TOLIMA"]
["SALDAÑA","Municipio",73671,"TOLIMA"]
["SAN ANTONIO","Municipio",73675,"TOLIMA",""]
["SAN LUIS","Municipio",73678,"TOLIMA",""]
["SANTA ISABEL","Municipio",73686,"TOLIMA",""]
["SUAREZ","Municipio",73770,"TOLIMA",""]
["VALLE DE S JUAN","Municipio",73854,"TOLIMA",""]
["VENADILLO","Municipio",73861,"TOLIMA",""]
["VILLAHERMOSA","Municipio",73870,"TOLIMA",""]
["VILLARRICA","Municipio",73873,"TOLIMA",""]
["VALLE_DEL_CAUCA_","Departamento",76999,"VALLE DEL CAUCA",""]
["ANDALUCIA","Municipio",76036,"VALLE DEL CAUCA",""]
["GUADALAJARA DE BUGA","Municipio",76111,"VALLE DEL CAUCA",""]
["CALIMA","Municipio",76126,"VALLE DEL CAUCA",""]
["YOTOCO","Municipio",76890,"VALLE DEL CAUCA",""]
["YUMBO","Municipio",76892,"VALLE DEL CAUCA",""]
["ZARZAL","Municipio",76895,"VALLE DEL CAUCA",""]
["VAUPÉS_","Departamento",97999,"VAUPÉS",""]
["MITU","Municipio",97001,"VAUPÉS",""]
["CARURU","Municipio",97161,"VAUPÉS",""]
["PACOA","ANM",97511,"VAUPÉS",""]
["TARAIRA","Municipio",97666,"VAUPÉS",""]
["PAPUNAUA","ANM",97777,"VAUPÉS",""]
["YAVARATÉ","ANM",97889,"VAUPÉS",""]
["VICHADA_","Departamento",99999,"VICHADA"]
["LA PRIMAVERA","Municipio",99524,"VICHADA"]
["SANTA ROSALIA","Municipio",99624,"VICHADA"]
["CUMARIBO","Municipio",99773,"VICHADA"]

{"sheet":"LISTADOS","index":3,"n_rows":111,"n_cols":34,"rows_kept":111,"cut":false,"hidden":true,"merged":[]}
["DEPARTAMENTO","AMAZONAS_","ANTIOQUIA_","ARAUCA_","ATLÁNTICO_","BOLÍVAR_","BOYACÁ_","CALDAS_","CAQUETÁ_","CASANARE_","CAUCA_","CESAR_","CHOCÓ_","CÓRDOBA_","CUNDINAMARCA_","GUAINÍA_","GUAVIARE_","HUILA_","LA_GUAJIRA_","MAGDALENA_","META_","NARIÑO_","NEIVA_","NORTE_DE_SANTANDER_","PUTUMAYO_","QUINDIO_","RISARALDA_","SAN_ANDRÉS_","SANTANDER_","SUCRE_","TOLIMA_","VALLE_DEL_CAUCA_","VAUPÉS_","VICHADA_"]
["--------------","EL ENCANTO","ABEJORRAL",null,"PUERTO COLOMBIA","ACHI","ALMEIDA","MANIZALES","FLORENCIA",null,"POPAYAN","AGUSTIN CODAZZI","CANTÓN DEL SAN PABLO","MONTERIA","AGUA DE DIOS","INIRIDA","SAN JOSE DEL GUAVIARE","ACEVEDO",null,null,"ACACIAS","PASTO","NEIVA.","ARBOLEDAS","PUERTO CAICEDO","ARMENIA","PEREIRA","SAN ANDRÉS.","AGUADA","BUENAVISTA","IBAGUE","ANDALUCIA","MITU","LA PRIMAVERA"]
["AMAZONAS_","LA CHORRERA","ALEJANDRÍA",null,null,"ARENAL","AQUITANIA","AGUADAS","ALBANIA",null,"ARGELIA",null,"RIO QUITO","AYAPEL","ALBAN","BARRANCO MINAS","CALAMAR","AGRADO",null,null,"BARRANCA DE UPIA","ALBAN",null,"BOCHALEMA","SANTIAGO","BUENAVISTA","APIA","PROVIDENCIA","ALBANIA","CAIMITO","ALPUJARRA","GUADALAJARA DE BUGA","CARURU","SANTA ROSALIA"]
["ANTIOQUIA_","LA PEDRERA","AMAGA",null,null,"ARJONA","BELEN","ANSERMA","BELEN DE LOS ANDAQUIES",null,"BALBOA",null,"ACANDÍ","BUENAVISTA","ANAPOIMA","MAPIRIPANA","EL RETORNO","AIPE",null,null,"CABUYARO","ALDANA",null,"CACOTA",null,"CALARCA","BALBOA",null,"ARATOCA","COLOSO","ALVARADO","CALIMA","PACOA","CUMARIBO"]
["ARAUCA_","LA VICTORIA","AMALFI",null,null,"ARROYOHONDO","BETEITIVA","ARANZAZU","CARTAGENA DEL CHAIRA",null,"BOLÍVAR",null,"MEDIO BAUDÓ","CANALETE","ANOLAIMA","SAN FELIPE","MIRAFLORES","ALGECIRAS",null,null,"CUMARAL","ANCUYA",null,"CACHIRA",null,"CIRCASIA","BELEN DE UMBRIA",null,"BARBOSA","CHALAN","AMBALEMA","YOTOCO","TARAIRA"]
["ATLÁNTICO_","MIRITI - PARANÁ","ANDES",null,null,"BARRANCO DE LOBA","BOAVITA","BELALCAZAR","CURILLO",null,"BUENOS AIRES",null,"SAN JOSÉ DEL PALMAR","CHINU","ARBELAEZ","PUERTO COLOMBIA",null,"ALTAMIRA",null,null,"EL CALVARIO","ARBOLEDA",null,"CHINACOTA",null,"CÓRDOBA","GUATICA",null,"BARICHARA","EL ROBLE","ANZOATEGUI","YUMBO","PAPUNAUA"]
["BOLÍVAR_","PUERTO ALEGRÍA","ANGELOPOLIS",null,null,"CICUCO","BOYACÁ.","CHINCHINA","EL DONCELLO",null,"CAJIBIO",null,"UNIÓN PANAMERICANA","COTORRA","BELTRAN","LA GUADALUPE",null,"BARAYA",null,null,"EL CASTILLO","BARBACOAS",null,"DURANIA",null,"FILANDIA","LA CELIA",null,"BETULIA","GALERAS","ARMERO (GUAYABAL)","ZARZAL","YAVARATÉ"]
["BOYACÁ_","PUERTO ARICA","SANTAFE DE ANTIOQUIA",null,null,"CÓRDOBA","BRICEÑO","FILADELFIA","PAUJIL",null,"CALOTO",null,"MEDIO SAN JUAN","LA APARTADA","BITUIMA","CACAHUAL",null,"COLOMBIA",null,null,"EL DORADO","BELEN",null,"EL CARMEN",null,"GENOVA","MARSELLA",null,"CALIFORNIA","GUARANDA","ATACO"]
["CALDAS_","PUERTO NARIÑO","ANZA",null,null,"CLEMENCIA","BUENAVISTA","LA DORADA","LA MONTAÑITA",null,"EL TAMBO",null,null,"LOS CÓRDOBAS","BOJACA","PANA PANA",null,"GARZON",null,null,"FUENTE DE ORO","BUESACO",null,"EL ZULIA",null,"LA TEBAIDA","MISTRATO",null,"CAPITANEJO","LA UNION","CAJAMARCA"]
["CAQUETÁ_","PUERTO_SANTANDER","ARBOLETES",null,null,"EL GUAMO","CALDAS","LA MERCED","MILAN",null,"FLORENCIA",null,null,"MOÑITOS","CABRERA","MORICHAL",null,"GIGANTE",null,null,"GRANADA","CÓRDOBA",null,"HACARI",null,"MONTENEGRO","PUEBLO RICO",null,"CARCASI","LOS PALMITOS","CASABIANCA"]
["CASANARE_","TARAPACÁ","ARGELIA",null,null,"EL PEÑON","CAMPOHERMOSO","MANZANARES","MORELIA",null,"GUACHENE",null,null,"PLANETA RICA","CACHIPAY",null,null,"GUADALUPE",null,null,"GUAMAL","CUASPUD-CARLOSAMA",null,"HERRAN",null,"PIJAO","QUINCHIA",null,"CERRITO","MAJAGUAL","COELLO"]
["CAUCA_",null,"ARMENIA",null,null,"MAHATES","CHINAVITA","MARMATO","PUERTO RICO",null,"GUAPI",null,null,"PUEBLO NUEVO","CAJICA",null,null,"IQUIRA",null,null,"MAPIRIPAN","CUMBAL",null,"LABATECA",null,"QUIMBAYA","SANTA ROSA DE CABAL",null,"CHARALA","MORROA","COYAIMA"]
["CESAR_",null,"BETULIA",null,null,"MARIA LA BAJA","CHIQUINQUIRA","MARQUETALIA","SAN JOSE DEL FRAGUA",null,"INZA",null,null,"PUERTO ESCONDIDO","CAPARRAPI",null,null,"LA ARGENTINA",null,null,"MESETAS","CHACHAGUI",null,"LA ESPERANZA",null,"SALENTO","SANTUARIO",null,"CHIMA","SAN ANTONIO DE PALMITO","CUNDAY"]
["CHOCÓ_",null,"BRICEÑO",null,null,"MONTECRISTO","CHISCAS","MARULANDA","SAN VICENTE DEL CAGUAN",null,"JAMBALO",null,null,"PUERTO LIBERTADOR","CAQUEZA",null,null,"LA PLATA",null,null,"LA URIBE","EL PEÑOL",null,"LOS PATIOS",{"$nulls":4},"CHIPATA","SAMPUES","ESPINAL"]
["CÓRDOBA_",null,"BURITICA",null,null,"MOMPOS","CHITARAQUE","NEIRA","SOLANO",null,"LA SIERRA",null,null,"SAN BERNARDO DEL VIENTO","CARMEN DE CARUPA",null,null,"NATAGA",null,null,"LEJANIAS","EL ROSARIO",null,"LOURDES",{"$nulls":4},"CIMITARRA","SAN BENITO ABAD","FALAN"]
["CUNDINAMARCA_",null,"CACERES",null,null,"NOROSI","CIENEGA","NORCASIA","SOLITA ",null,"LA VEGA",null,null,"SAN PELAYO","CHAGUANI",null,null,"OPORAPA",null,null,"PUERTO CONCORDIA","EL TABLON",null,"PAMPLONA",{"$nulls":4},"CONCEPCION","SAN MARCOS","FLANDES"]
["GUAINÍA_",null,"CAICEDO",null,null,"PINILLOS","COMBITA","PACORA","VALPARAÍSO",null,"LOPEZ DE MICAY",null,null,"TIERRALTA","CHIPAQUE",null,null,"PAICOL",null,null,"PUERTO GAITAN","EL TAMBO",null,"PAMPLONITA",{"$nulls":4},"CONFINES","SAN ONOFRE","FRESNO"]
["GUAVIARE_",null,"CAMPAMENTO",null,null,"REGIDOR","CORRALES","PALESTINA",null,null,"MERCADERES",null,null,"VALENCIA","CHOACHI",null,null,"PALERMO",null,null,"PUERTO LOPEZ","FUNES",null,"PUERTO SANTANDER",{"$nulls":4},"CONTRATACION","SINCE","GUAMO"]
["HUILA_",null,"CAÑASGORDAS",null,null,"RIO VIEJO","COVARACHIA","PENSILVANIA",null,null,"MORALES",null,null,null,"CHOCÓNTA",null,null,"PITAL",null,null,"PUERTO LLERAS","GUACHUCAL",null,"SALAZAR DE LAS PALMAS",{"$nulls":4},"COROMORO","SUCRE.","HERVEO"]
["LA_GUAJIRA_",null,"CARACOLI",null,null,"SAN CRISTOBAL","CUBARA","RIOSUCIO",null,null,"PADILLA",null,null,null,"CUCUNUBA",null,null,"PITALITO",null,null,"PUERTO RICO","GUALMATAN",null,"SAN CAYETANO",{"$nulls":4},"CURITI","TOLU","HONDA"]
["MAGDALENA_",null,"CAREPA",null,null,"SAN ESTANISLAO","CUCAITA","RISARALDA",null,null,"PAEZ (BELALCAZAR",null,null,null,"EL COLEGIO",null,null,"RIVERA",null,null,"SAN CARLOS DE GUAROA","GUAITARILLA",null,"SANTIAGO",{"$nulls":4},"EL CARMEN DE CHUCURI","TOLUVIEJO","ICONONZO"]
["META_",null,"CAROLINA",null,null,"SAN JACINTO","CHIQUIZA","SALAMINA",null,null,"PATIA (EL BORDO)",null,null,null,"EL PEÑON",null,null,"SALADOBLANCO",null,null,"SAN JUAN DE ARAMA","IMUES",null,"SILOS",{"$nulls":4},"EL PEÑON",null,"LIBANO"]
["NARIÑO_",null,"CAUCASIA",null,null,"SAN JACINTO DEL CAUCA","CHIVOR","SAMANA",null,null,"PIAMONTE",null,null,null,"EL ROSAL",null,null,"SAN AGUSTIN",null,null,null,"IPIALES",null,"TIBU",{"$nulls":4},"EL PLAYON",null,"MARIQUITA"]
["NEIVA_",null,"CISNEROS",null,null,"SAN JUAN DE NEPOMUCENO","DUITAMA","SAN JOSE",null,null,"PIENDAMO",null,null,null,"FACATATIVA",null,null,"SANTA MARIA",null,null,null,"LA CRUZ",null,"TOLEDO",{"$nulls":4},"ENCINO",null,"MELGAR"]
["NORTE_DE_SANTANDER_",null,"CONCORDIA",null,null,"SANTA CATALINA","EL COCUY","SUPIA",null,null,"PUERTO TEJADA",null,null,null,"FOMEQUE",null,null,"TARQUI",null,null,null,"LA LLANADA",null,"VILLACARO",{"$nulls":4},"ENCISO",null,"MURILLO"]
["PUTUMAYO_",null,"DON MATIAS",null,null,"SANTA ROSA DEL SUR","EL ESPINO","VICTORIA",null,null,"PURACE",null,null,null,"FOSCA",null,null,"ISNOS",null,null,null,"LA UNION",null,"VILLA DEL ROSARIO",{"$nulls":4},"FLORIAN",null,"NATAGAIMA"]
["QUINDIO_",null,"EL BAGRE",null,null,"SIMITI","FIRAVITOBA","VILLAMARIA",null,null,"ROSAS",null,null,null,"FUQUENE",null,null,"PALESTINA",null,null,null,"LINARES",{"$nulls":6},"FLORIDABLANCA",null,"ORTEGA"]
["RISARALDA_",null,"EL PEÑOL",null,null,"SOPLAVIENTO","GACHANTIVA","VITERBO",null,null,"SAN SEBASTIAN",null,null,null,"FUSAGASUGA",null,null,"SUAZA",null,null,null,"LOS ANDES",{"$nulls":6},"GALAN",null,"PALOCABILDO"]
["SAN_ANDRÉS_",null,"FREDONIA",null,null,"TALAIGUA NUEVO","GARAGOA",null,null,null,"SANTANDER DE QUILICHAO",null,null,null,"GACHALA",null,null,"TESALIA",null,null,null,"MALLAMA",{"$nulls":6},"GIRON",null,"PIEDRAS"]
["SANTANDER_",null,"FRONTINO",null,null,"TIQUISIO","GUACAMAYAS",null,null,null,"SANTA ROSA",null,null,null,"GACHANCIPA",null,null,"TELLO",null,null,null,"MOSQUERA",{"$nulls":6},"GUACA",null,"PLANADAS"]
["SUCRE_",null,"GIRALDO",null,null,"TURBACO","GUAYATA",null,null,null,"SILVIA",null,null,null,"GACHETA",null,null,"TERUEL",null,null,null,"NARIÑO.",{"$nulls":6},"GUADALUPE",null,"PRADO"]
["TOLIMA_",null,"GOMEZ PLATA",null,null,"VILLANUEVA","GUICAN",null,null,null,"SOTARA",null,null,null,"GAMA",null,null,"TIMANA",null,null,null,"OSPINA",{"$nulls":6},"GUAVATA",null,"PURIFICACION"]
["VALLE_DEL_CAUCA_",null,"GUATAPÉ",null,null,null,"IZA",null,null,null,"SUAREZ",null,null,null,"GIRARDOT",null,null,"VILLAVIEJA",null,null,null,"POLICARPA",{"$nulls":6},"GUEPSA",null,"RIOBLANCO"]
["VAUPÉS_",null,"HELICONIA",null,null,null,"JERICO",null,null,null,"TIMBIO",null,null,null,"GRANADA",{"$nulls":6},"POTOSI",{"$nulls":6},"HATO",null,"RONCESVALLES"]
["VICHADA_",null,"HISPANIA",null,null,null,"LABRANZAGRANDE",null,null,null,"TIMBIQUI",null,null,null,"GUACHETA",{"$nulls":6},"PUERRES",{"$nulls":6},"JESUS MARIA",null,"ROVIRA"]
[null,null,"ITUANGO",null,null,null,"LA UVITA",null,null,null,"TORIBIO",null,null,null,"GUADUAS",{"$nulls":6},"PUPIALES",{"$nulls":6},"LA BELLEZA",null,"SALDAÑA"]
[null,null,"JARDIN",null,null,null,"VILLA DE LEYVA",null,null,null,"TOTORO",null,null,null,"GUASCA",{"$nulls":6},"RICAURTE",{"$nulls":6},"LA PAZ",null,"SAN ANTONIO"]
[null,null,"JERICO",null,null,null,"MACANAL",{"$nulls":7},"GUATAQUI",{"$nulls":6},"ROBERTO PAYAN",{"$nulls":6},"LEBRIJA",null,"SAN LUIS"]
[null,null,"LA CEJA",null,null,null,"MARIPI",{"$nulls":7},"GUATAVITA",{"$nulls":6},"SANDONA",{"$nulls":6},"LOS SANTOS",null,"SANTA ISABEL"]
[null,null,"LA PINTADA",null,null,null,"MIRAFLORES",{"$nulls":7},"GUAYABAL DE SIQUIMA",{"$nulls":6},"SAN BERNARDO",{"$nulls":6},"MACARAVITA",null,"SUAREZ"]
[null,null,"LA UNIÓN",null,null,null,"MONGUI",{"$nulls":7},"GUAYABETAL",{"$nulls":6},"SAN LORENZO",{"$nulls":6},"MALAGA",null,"VALLE DE S JUAN"]
[null,null,"LIBORINA",null,null,null,"MUZO",{"$nulls":7},"GUTIERREZ",{"$nulls":6},"SAN PABLO",{"$nulls":6},"MATANZA",null,"VENADILLO"]
[null,null,"MACEO",null,null,null,"NOBSA",{"$nulls":7},"JERUSALEN",{"$nulls":6},"SAN PEDRO DE CARTAGO",{"$nulls":6},"MOGOTES",null,"VILLAHERMOSA"]
[null,null,"MONTEBELLO",null,null,null,"NUEVO COLON",{"$nulls":7},"JUNIN",{"$nulls":6},"CONTADERO",{"$nulls":6},"MOLAGAVITA",null,"VILLARRICA"]
[null,null,"MURINDO",null,null,null,"OICATA",{"$nulls":7},"LA CALERA",{"$nulls":6},"LA FLORIDA",{"$nulls":6},"OCAMONTE"]
[null,null,"MUTATÁ",null,null,null,"OTANCHE",{"$nulls":7},"LA MESA",{"$nulls":6},"TAMINANGO",{"$nulls":6},"OIBA"]
[null,null,"NARIÑO",null,null,null,"PACHAVITA",{"$nulls":7},"LA PALMA",{"$nulls":6},"SANTA CRUZ",{"$nulls":6},"PALMAR"]
[null,null,"NECOCLI",null,null,null,"PAEZ",{"$nulls":7},"LA PEÑA",{"$nulls":6},"SAPUYES",{"$nulls":6},"PALMAS DEL SOCORRO"]
[null,null,"NECHI",null,null,null,"PAIPA",{"$nulls":7},"LA VEGA",{"$nulls":6},"TANGUA",{"$nulls":6},"PARAMO"]
[null,null,"OLAYA",null,null,null,"PAJARITO",{"$nulls":7},"LENGUAZAQUE",{"$nulls":6},"TUMACO",{"$nulls":6},"PINCHOTE"]
[null,null,"PUEBLORRICO",null,null,null,"PAUNA",{"$nulls":7},"MACHETA",{"$nulls":6},"TUQUERRES",{"$nulls":6},"PUENTE NACIONAL"]
[null,null,"PUERTO BERRIO",null,null,null,"PAYA",{"$nulls":7},"MADRID",{"$nulls":6},"YACUANQUER",{"$nulls":6},"PUERTO PARRA"]
[null,null,"PUERTO NARE",null,null,null,"PAZ DEL RIO",{"$nulls":7},"MANTA",{"$nulls":6},"ILES",{"$nulls":6},"RIONEGRO"]
[null,null,"PUERTO TRIUNFO",null,null,null,"PESCA",{"$nulls":7},"MEDINA",{"$nulls":6},"PROVIDENCIA",{"$nulls":6},"SABANA DE TORRES"]
[null,null,"REMEDIOS",null,null,null,"QUIPAMA",{"$nulls":7},"MOSQUERA",{"$nulls":13},"SAN ANDRES"]
[null,null,"SABANALARGA",null,null,null,"RAMIRIQUI",{"$nulls":7},"NARIÑO",{"$nulls":13},"SAN GIL"]
[null,null,"SALGAR",null,null,null,"RAQUIRA",{"$nulls":7},"NEMOCON",{"$nulls":13},"SAN JOAQUIN"]
[null,null,"SAN ANDRÉS",null,null,null,"RONDON",{"$nulls":7},"NILO",{"$nulls":13},"SAN VICENTE DE CHUCURI"]
[null,null,"SAN CARLOS",null,null,null,"SABOYA",{"$nulls":7},"NIMAIMA",{"$nulls":13},"GÁMBITA"]
[null,null,"SAN FRANCISCO",null,null,null,"SACHICA",{"$nulls":7},"NOCAIMA",{"$nulls":13},"SAN BENITO"]
[null,null,"SAN JERONIMO",null,null,null,"SAMACA",{"$nulls":7},"VENECIA (OSPINA PEREZ)",{"$nulls":13},"SUAITA"]
[null,null,"SAN JOSE DE LA MONTAÑA",null,null,null,"SAN EDUARDO",{"$nulls":7},"PACHO",{"$nulls":13},"SOCORRO"]
[null,null,"SAN JUAN DE URABA",null,null,null,"SAN JOSE DE PARE",{"$nulls":7},"PAIME",{"$nulls":13},"SUCRE"]
[null,null,"SAN LUIS",null,null,null,"SAN LUIS DE GACENO",{"$nulls":7},"PANDI",{"$nulls":13},"SURATA"]
[null,null,"SAN RAFAEL",null,null,null,"SAN MATEO",{"$nulls":7},"PARATEBUENO",{"$nulls":13},"TONA"]
[null,null,"SAN ROQUE",null,null,null,"SAN MIGUEL DE SEMA",{"$nulls":7},"PASCA",{"$nulls":13},"VELEZ"]
[null,null,"SAN VICENTE DE FERRER",null,null,null,"SAN PABLO DE BORBUR",{"$nulls":7},"PUERTO SALGAR",{"$nulls":13},"VETAS"]
[null,null,"SANTA BARBARA",null,null,null,"SANTANA",{"$nulls":7},"PULI",{"$nulls":13},"VILLANUEVA"]
[null,null,"SANTA ROSA DE OSOS",null,null,null,"SANTA ROSA DE VITERBO",{"$nulls":7},"QUEBRADANEGRA",{"$nulls":13},"ZAPATOCA"]
[null,null,"SANTUARIO",null,null,null,"SANTA SOFIA",{"$nulls":7},"QUETAME"]
[null,null,"SEGOVIA",null,null,null,"SOATA",{"$nulls":7},"QUIPILE"]
[null,null,"SONSON",null,null,null,"SOCOTA",{"$nulls":7},"APULO"]
[null,null,"TARSO",null,null,null,"SOGAMOSO",{"$nulls":7},"RICAURTE"]
[null,null,"TOLEDO",null,null,null,"SORA",{"$nulls":7},"SAN  ANTONIO DEL  TEQUENDAMA"]
[null,null,"TITIRIBI",null,null,null,"SOTAQUIRA",{"$nulls":7},"SAN BERNARDO"]
[null,null,"URAMITA",null,null,null,"SORACA",{"$nulls":7},"SAN CAYETANO"]
[null,null,"URRAO",null,null,null,"SUTAMARCHAN",{"$nulls":7},"SAN FRANCISCO"]
[null,null,"ANORÍ",null,null,null,"SUTATENZA",{"$nulls":7},"SAN JUAN DE RIOSECO"]
[null,null,"CIUDAD BOLIVAR",null,null,null,"TASCO",{"$nulls":7},"SASAIMA"]
[null,null,"VALDIVIA",null,null,null,"TENZA",{"$nulls":7},"SESQUILE"]
[null,null,"VEGACHI",null,null,null,"TIBANA",{"$nulls":7},"SIBATE"]
[null,null,"VENECIA",null,null,null,"TINJACA",{"$nulls":7},"SILVANIA"]
[null,null,"ENTRERRIOS",null,null,null,"TIPACOQUE",{"$nulls":7},"SIMIJACA"]
[null,null,"COCORNÁ",null,null,null,"TIBASOSA",{"$nulls":7},"SOACHA"]
[null,null,"SANTO DOMINGO",null,null,null,"ARCABUCO",{"$nulls":7},"SOPO"]
[null,null,"VIGIA DEL FUERTE",null,null,null,"GUATEQUE",{"$nulls":7},"SUBACHOQUE"]
[null,null,"YOLOMBO",null,null,null,"SANTA MARÍA",{"$nulls":7},"SUESCA"]
[null,null,"ZARAGOZA",null,null,null,"TOCA",{"$nulls":7},"SUPATA"]
[null,null,"GUARNE",null,null,null,"TOPAGA",{"$nulls":7},"SUSA"]
[null,null,"VALPARAISO",null,null,null,"TOTA",{"$nulls":7},"SUTATAUSA"]
[null,null,"CONCEPCION",null,null,null,"TURMEQUE",{"$nulls":7},"TABIO"]
[{"$nulls":6},"TUTA",{"$nulls":7},"TAUSA"]
[{"$nulls":6},"TUTASA",{"$nulls":7},"TENA"]
[{"$nulls":6},"UMBITA",{"$nulls":7},"TIBACUY"]
[{"$nulls":6},"VENTAQUEMADA",{"$nulls":7},"TIBIRITA"]
[{"$nulls":6},"ZETAQUIRA",{"$nulls":7},"TOCAIMA"]
[{"$nulls":6},"CERINZA",{"$nulls":7},"TOPAIPI"]
[{"$nulls":6},"SIACHOQUE",{"$nulls":7},"UBALA"]
[{"$nulls":6},"TUNJA",{"$nulls":7},"UBAQUE"]
[{"$nulls":6},"CUITIVA",{"$nulls":7},"UBATE"]
[{"$nulls":6},"MOTAVITA",{"$nulls":7},"UNE"]
[{"$nulls":6},"PANQUEBA",{"$nulls":7},"UTICA"]
[{"$nulls":6},"LA CAPILLA",{"$nulls":7},"VERGARA"]
[{"$nulls":6},"MONIQUIRÁ",{"$nulls":7},"VIANI"]
[{"$nulls":6},"VIRACACHÁ",{"$nulls":7},"VILLAGOMEZ"]
[{"$nulls":14},"VILLAPINZON"]
[{"$nulls":14},"VILLETA"]
[{"$nulls":14},"VIOTA"]
[{"$nulls":14},"YACOPI"]
[{"$nulls":14},"ZIPACON"]
[{"$nulls":14},"ZIPAQUIRA"]